bitfinex/quotes_SOLUSD_20250822
["timestamp","ask_amount","ask_price","bid_price","bid_amount"]
[1755853304527,0.73,184.33,184.32,84.15015701]
[1755853305034,0.73,184.33,184.32,58.15015701]
[1755853305432,0.73,184.33,184.32,58.29231858]
[1755853305639,0.73,184.33,184.32,58.43448015]
[1755853308951,0.73,184.33,184.32,138.23448014]
[1755853310243,0.73,184.33,184.32,81.97456299]
[1755853310441,0.73,184.33,184.3,0.03]
[1755853310442,6.15505289,184.33,184.3,0.03]
[1755853310639,6.15505289,184.33,184.31,42.38]
[1755853310955,0.68,184.32,184.31,42.38]
[1755853311347,6.10534722,184.32,184.31,42.38]
[1755853311752,5.42534722,184.32,184.31,42.38]
[1755853312060,6.10534722,184.32,184.31,42.38]
[1755853312556,6.10534722,184.32,184.3,42.41]
[1755853312762,0.68,184.31,184.3,42.41]
[1755853313260,6.10564158,184.31,184.3,42.41]
[1755853313962,6.10564158,184.31,184.3,0.03]
[1755853314162,0.68,184.31,184.3,0.03]
[1755853314364,6.10564158,184.31,184.3,0.03]
[1755853314663,0.68,184.31,184.3,0.03]
[1755853314834,6.10564158,184.31,184.3,0.03]
[1755853317674,0.68,184.31,184.3,0.03]
[1755853321244,26.0,184.29,184.26,0.03]
[1755853321448,27.12188793,184.28,184.19,13.59559401]
[1755853321647,8.14557138,184.27,184.2,5.425386]
[1755853321878,8.14557138,184.27,184.18,0.03]
[1755853321879,1.09188793,184.26,184.18,43.11]
[1755853322142,0.55,184.25,184.18,43.11]
[1755853322370,26.0,184.23,184.18,0.03]
[1755853322561,0.55,184.22,184.18,43.11]
[1755853322756,1.09188793,184.22,184.18,43.11]
[1755853322960,0.55,184.21,184.18,43.11]
[1755853323759,5.97859414,184.21,184.18,43.11]
[1755853324374,5.97859566,184.21,184.18,43.11]
[1755853324577,0.55,184.21,184.18,43.11]
[1755853324775,26.55,184.23,184.18,43.8]
[1755853324980,31.97802672,184.23,184.18,43.8]
[1755853325149,31.42802672,184.23,184.18,43.8]
[1755853325350,31.97802672,184.23,184.18,43.8]
[1755853329857,31.97802672,184.23,184.19,0.69]
[1755853330875,31.42770643,184.24,184.2,0.69]
[1755853331085,31.42770643,184.24,184.19,0.28432314]
[1755853331573,0.55,184.23,184.18,43.11]
[1755853331760,1.09188793,184.23,184.18,43.11]
[1755853332377,0.55,184.22,184.18,43.11]
[1755853332558,0.55,184.22,184.18,122.91]
[1755853332882,0.55,184.21,184.18,122.91]
[1755853333171,5.97888165,184.2,184.18,79.83]
[1755853334175,5.42888165,184.2,184.18,79.83]
[1755853334494,31.42865843,184.21,184.18,79.83]
[1755853334782,5.42838222,184.22,184.19,0.69]
[1755853336770,31.9699407,184.23,184.18,79.83]
[1755853336956,5.42740841,184.25,184.2,0.69]
[1755853337155,0.54188793,184.24,184.2,0.69]
[1755853338054,0.54188793,184.24,184.2,0.66]
[1755853338270,1.09188793,184.24,184.2,0.66]
[1755853338680,1.09188793,184.24,184.18,80.49]
[1755853338890,1.09188793,184.24,184.18,79.83]
[1755853339091,5.42799761,184.23,184.19,0.66]
[1755853339961,5.42799761,184.23,184.2,0.66]
[1755853340168,5.42799761,184.23,184.21,0.66]
[1755853341586,5.42799761,184.23,184.19,0.66]
[1755853341786,5.42799761,184.23,184.2,0.66]
[1755853343973,0.55,184.22,184.19,0.28432314]
[1755853344357,0.55,184.22,184.19,80.08432314]
[1755853344568,5.42799761,184.23,184.19,80.08432314]
[1755853344765,5.97799761,184.23,184.19,80.74432314]
[1755853345274,0.55,184.22,184.19,79.8]
[1755853345860,5.42799761,184.23,184.19,79.8]
[1755853345861,5.42799761,184.23,184.19,80.46]
[1755853347082,5.42799761,184.23,184.2,0.66]
[1755853348086,9.5526378,184.24,184.21,0.66]
[1755853348290,9.5526378,184.24,184.22,0.66]
[1755853348463,9.5526378,184.24,184.19,79.8]
[1755853348663,10.1026378,184.24,184.2,0.66]
[1755853349092,9.5526378,184.24,184.21,0.66]
[1755853349283,4.12491262,184.24,184.22,0.66]
[1755853349591,9.01076104,184.24,184.21,0.66]
[1755853350774,10.10264897,184.24,184.2,0.28432314]
[1755853350973,4.53777664,184.23,184.19,79.8]
[1755853351277,4.53777664,184.23,184.19,80.46]
[1755853351594,5.42829225,184.22,184.19,80.46]
[1755853352092,5.42829225,184.22,184.2,0.03]
[1755853352587,5.97829225,184.22,184.2,0.03]
[1755853353089,5.42829225,184.22,184.2,0.03]
[1755853353589,5.42799761,184.23,184.2,0.03]
[1755853353798,3.99245338,184.22,184.2,0.03]
[1755853354183,5.42799761,184.23,184.2,0.69]
[1755853354501,3.99453516,184.22,184.2,0.69]
[1755853355208,9.42283775,184.22,184.2,0.69]
[1755853355388,5.42810321,184.23,184.2,0.69]
[1755853355691,3.99748652,184.22,184.2,0.69]
[1755853356368,3.99748652,184.22,184.2,0.03]
[1755853357389,5.42858693,184.21,184.2,0.03]
[1755853357578,9.42607345,184.21,184.2,0.03]
[1755853358693,9.4317121,184.21,184.2,0.03]
[1755853358991,4.00301464,184.21,184.2,0.69]
[1755853359190,3.58302469,184.22,184.2,0.69]
[1755853359401,7.58808098,184.21,184.2,0.03]
[1755853359576,4.00505629,184.21,184.2,0.03]
[1755853359892,7.58808098,184.21,184.2,0.03]
[1755853360065,4.00505629,184.21,184.2,0.03]
[1755853360265,7.58808098,184.21,184.2,0.03]
[1755853360461,4.00505629,184.21,184.2,0.03]
[1755853360691,7.58808098,184.21,184.2,0.03]
[1755853361212,8.13808098,184.21,184.2,0.03]
[1755853361367,13.56666791,184.21,184.2,0.03]
[1755853361770,13.02183625,184.21,184.2,0.03]
[1755853362206,13.57183625,184.21,184.2,0.03]
[1755853362568,13.56372418,184.21,184.2,0.03]
[1755853362978,14.11372418,184.21,184.2,0.03]
[1755853363588,13.56372418,184.21,184.2,0.03]
[1755853364166,18.09598997,184.21,184.2,0.03]
[1755853365470,18.64598997,184.21,184.2,0.03]
[1755853365903,18.09598997,184.21,184.2,0.03]
[1755853366398,14.11372418,184.21,184.18,0.03]
[1755853366697,12.1208638,184.2,184.18,0.03]
[1755853366998,7.59324932,184.19,184.18,0.03]
[1755853367898,9.01220108,184.19,184.18,0.03]
[1755853368099,13.03776755,184.19,184.18,0.03]
[1755853368478,13.03749817,184.19,184.18,0.03]
[1755853369207,13.03749817,184.19,184.18,0.69]
[1755853369772,7.60832178,184.19,184.18,0.69]
[1755853370206,7.60836859,184.19,184.18,0.69]
[1755853371104,3.58302469,184.19,184.18,0.69]
[1755853371299,7.60816741,184.19,184.18,0.69]
[1755853371481,13.0373438,184.19,184.18,0.69]
[1755853373893,13.0373438,184.19,184.18,0.03]
[1755853374185,13.03730764,184.19,184.18,0.03]
[1755853375097,9.45428295,184.19,184.18,0.03]
[1755853375291,10.00428295,184.19,184.18,0.03]
[1755853375494,13.58730764,184.19,184.18,0.03]
[1755853376391,26.0,184.17,184.16,0.03]
[1755853376597,76.79001918,184.17,184.16,0.03]
[1755853376995,82.76978515,184.17,184.16,0.03]
[1755853377195,78.74467859,184.17,184.16,0.03]
[1755853377400,40.12752442,184.17,184.16,0.03]
[1755853377583,82.74752442,184.17,184.16,0.03]
[1755853377787,87.2751389,184.17,184.16,0.03]
[1755853378197,82.74752442,184.17,184.16,0.03]
[1755853378598,87.2751389,184.17,184.16,0.03]
[1755853379193,82.74752442,184.17,184.16,0.03]
[1755853381010,82.19752442,184.17,184.16,0.03]
[1755853381309,82.70752442,184.17,184.16,0.03]
[1755853381497,87.2351389,184.17,184.16,0.03]
[1755853382496,82.70752442,184.17,184.15,0.03]
[1755853382725,8.15587052,184.16,184.15,0.03]
[1755853383093,13.58593133,184.16,184.15,0.03]
[1755853383489,13.58593133,184.16,184.15,1e-08]
[1755853384291,15.76392833,184.16,184.15,1e-08]
[1755853385500,11.7410825,184.16,184.15,1e-08]
[1755853385714,15.75791389,184.16,184.15,1e-08]
[1755853387619,15.20791389,184.16,184.15,1e-08]
[1755853387806,83.74791389,184.16,184.15,0.66000001]
[1755853388525,83.74791389,184.16,184.15,1e-08]
[1755853388690,84.28980182,184.16,184.15,1e-08]
[1755853388890,41.74980182,184.16,184.15,1e-08]
[1755853389090,84.26980182,184.16,184.15,1e-08]
[1755853389696,84.26980182,184.16,184.15,0.66000001]
[1755853391197,84.24980182,184.16,184.15,0.66000001]
[1755853391714,84.23996588,184.16,184.15,0.66000001]
[1755853392398,84.23996588,184.16,184.15,1e-08]
[1755853392597,84.23996588,184.16,184.15,0.66000001]
[1755853393631,84.23996588,184.16,184.15,1e-08]
[1755853393805,84.23996588,184.16,184.15,0.66000001]
[1755853394142,80.65694119,184.16,184.15,0.66000001]
[1755853394304,84.26355494,184.16,184.15,0.66000001]
[1755853394507,84.81355494,184.16,184.15,1e-08]
[1755853394915,84.263794,184.16,184.15,1e-08]
[1755853395334,41.763794,184.16,184.15,1e-08]
[1755853395506,83.72190607,184.16,184.15,0.66000001]
[1755853396326,41.22190607,184.16,184.15,1e-08]
[1755853396507,83.72190607,184.16,184.15,1e-08]
[1755853400418,41.22190607,184.16,184.15,1e-08]
[1755853400616,84.263794,184.16,184.15,1e-08]
[1755853401703,58.813794,184.16,184.14,1e-08]
[1755853401905,8.16384826,184.15,184.14,1e-08]
[1755853402506,8.16384826,184.15,184.13,1e-08]
[1755853402713,73.59912244,184.14,184.13,1e-08]
[1755853402912,77.20573619,184.14,184.13,1e-08]
[1755853404022,52.62915227,184.14,184.12,1e-08]
[1755853404227,8.16315159,184.13,184.12,1e-08]
[1755853404635,10.34131191,184.13,184.12,1e-08]
[1755853405115,15.77225743,184.13,184.12,1e-08]
[1755853405914,15.77225743,184.13,184.11,0.03]
[1755853405915,15.22225743,184.13,184.11,1e-08]
[1755853406120,47.59835209,184.12,184.11,1e-08]
[1755853406333,51.20496584,184.12,184.11,1e-08]
[1755853406639,67.54438984,184.12,184.11,1e-08]
[1755853407242,77.48338337,184.12,184.11,1e-08]
[1755853407743,34.43338337,184.12,184.11,1e-08]
[1755853407926,76.93338337,184.12,184.11,1e-08]
[1755853408941,72.42511618,184.12,184.11,1e-08]
[1755853413841,72.42779344,184.12,184.11,1e-08]
[1755853414040,68.41916617,184.12,184.11,1e-08]
[1755853414252,72.42779344,184.12,184.11,1e-08]
[1755853414440,72.42853022,184.12,184.11,1e-08]
[1755853416631,72.97853022,184.12,184.11,1e-08]
[1755853416934,77.48679741,184.12,184.11,1e-08]
[1755853418646,26.0,184.1,184.09,1e-08]
[1755853418848,76.1159778,184.1,184.09,1e-08]
[1755853419058,77.20786573,184.1,184.09,1e-08]
[1755853419224,93.54817973,184.1,184.09,1e-08]
[1755853419824,98.98001025,184.1,184.09,1e-08]
[1755853420338,103.49509301,184.1,184.09,1e-08]
[1755853420734,102.94509301,184.1,184.09,1e-08]
[1755853422733,56.43572896,184.1,184.09,1e-08]
[1755853422944,102.95282006,184.1,184.09,1e-08]
[1755853423635,55.93766524,184.1,184.09,0.66000001]
[1755853423843,98.43766524,184.1,184.09,0.66000001]
[1755853424539,98.43766524,184.1,184.09,1e-08]
[1755853424852,102.952748,184.1,184.09,1e-08]
[1755853426925,139.17639418,184.1,184.05,0.66]
[1755853427124,26.0,184.06,184.05,0.71]
[1755853427321,76.66552072,184.06,184.05,0.71]
[1755853427525,90.26111472,184.06,184.03,0.71]
[1755853427830,7.62363279,184.05,184.04,0.71]
[1755853428034,7.62363279,184.05,183.97,0.1]
[1755853428240,43.04188793,184.04,183.97,0.24216157]
[1755853428426,43.04188793,184.04,183.97,0.38432314]
[1755853428628,42.5,184.03,183.98,0.71]
[1755853428842,64.2770706,184.03,183.98,0.71]
[1755853430948,47.9340856,184.03,183.98,0.71]
[1755853431340,16.342984,184.02,183.98,0.71]
[1755853431538,16.342984,184.02,184.0,0.03]
[1755853431745,16.342984,184.02,184.01,0.71]
[1755853433253,21.77717593,184.02,184.01,0.71]
[1755853433942,16.342984,184.02,184.01,0.71]
[1755853434346,21.77717593,184.02,184.01,0.71]
[1755853435134,16.342984,184.02,184.01,0.71]
[1755853436154,21.77717593,184.02,184.01,0.71]
[1755853437342,16.342984,184.02,184.01,0.71]
[1755853437541,47.93334335,184.05,184.01,0.71]
[1755853437846,47.93307384,184.06,184.01,0.71]
[1755853439259,6.03675993,184.07,184.01,0.71]
[1755853439260,5.494872,184.07,184.01,0.71]
[1755853439440,42.5,184.06,184.01,0.99432314]
[1755853439641,42.5,184.06,184.01,16.62285714]
[1755853439842,42.5,184.06,184.02,0.71]
[1755853440358,42.56,184.07,184.03,0.28432314]
[1755853440560,16.337644,184.1,184.04,0.71]
[1755853440754,16.337644,184.1,184.06,0.28432314]
[1755853440955,47.99179818,184.11,184.06,0.28432314]
[1755853441146,47.99179818,184.11,184.07,0.71]
[1755853441559,3.61469263,184.1,184.06,0.28432314]
[1755853441755,3.61469263,184.1,184.08,0.71]
[1755853442156,3.61469263,184.1,184.09,0.71]
[1755853442456,3.61469263,184.1,184.06,0.28432314]
[1755853442643,3.61469263,184.1,184.07,0.71]
[1755853442845,5.43212559,184.09,184.07,0.71]
[1755853443940,5.43212559,184.09,184.05,0.28432314]
[1755853444139,5.43212559,184.09,184.05,0.99432314]
[1755853444340,5.43212559,184.09,184.06,0.71]
[1755853444869,1.15188793,184.08,184.03,0.71]
[1755853445162,4.62786858,184.07,184.01,79.8]
[1755853445336,0.54188793,184.06,184.02,0.71]
[1755853445544,0.54188793,184.06,184.0,0.03]
[1755853445545,0.54188793,184.06,184.03,0.71]
[1755853445950,0.54188793,184.06,184.01,0.71]
[1755853446146,4.56024339,184.06,184.0,0.03]
[1755853446348,42.5,184.05,184.01,0.71]
[1755853446648,7.63387003,184.04,184.02,0.71]
[1755853446971,5.43389664,184.03,184.02,0.71]
[1755853447839,5.43389664,184.03,184.0,0.74]
[1755853448040,5.43389664,184.03,184.01,0.71]
[1755853449365,5.43389664,184.03,184.0,0.03]
[1755853449671,5.43389664,184.03,184.0,0.74]
[1755853451239,5.43389664,184.03,184.0,0.03]
[1755853451445,5.43389664,184.03,184.0,0.74]
[1755853452866,5.43389664,184.03,184.0,0.03]
[1755853453074,5.43389664,184.03,184.0,0.74]
[1755853453667,0.54188793,184.02,184.0,0.03]
[1755853453858,16.88576393,184.02,184.0,0.03]
[1755853454046,3.61908095,184.01,184.0,0.03]
[1755853454368,4.22908095,184.01,184.0,0.03]
[1755853454576,0.61,184.01,184.0,0.03]
[1755853454871,21.77925325,184.01,184.0,0.03]
[1755853455072,25.3983342,184.01,184.0,0.03]
[1755853455847,25.94022213,184.01,184.0,0.03]
[1755853457268,25.94022213,184.01,183.94,127.68351197]
[1755853457476,22.32114118,184.01,183.94,127.68351197]
[1755853458049,23.03114118,184.01,183.94,127.68351197]
[1755853458675,5.43507799,183.99,183.94,127.68351197]
[1755853459251,5.43507799,183.99,183.95,0.96432314]
[1755853459551,5.43507799,183.99,183.96,0.68]
[1755853459751,6.14507799,183.99,183.96,0.68]
[1755853459951,5.43507799,183.99,183.95,0.28432314]
[1755853460169,5.43507799,183.99,183.97,0.68]
[1755853461058,5.43507799,183.99,183.95,0.96432314]
[1755853461276,5.43507799,183.99,183.96,0.68]
[1755853461970,9.05601182,184.0,183.97,0.68]
[1755853462176,9.05601182,184.0,183.95,0.96432314]
[1755853462177,9.76601182,184.0,183.95,0.96432314]
[1755853462487,9.76601182,184.0,183.96,0.68]
[1755853462659,9.76601182,184.0,183.96,80.48]
[1755853462860,9.05601182,184.0,183.97,0.68]
[1755853463159,0.71,183.99,183.96,79.8]
[1755853463352,0.71,183.99,183.96,80.48]
[1755853463547,9.05601182,184.0,183.96,80.48]
[1755853463753,9.76601182,184.0,183.96,80.48]
[1755853464856,9.05601182,184.0,183.97,0.68]
[1755853466264,3.62114776,184.0,183.98,0.68]
[1755853466459,3.62114776,184.0,183.99,0.68]
[1755853466670,3.62114776,184.0,183.98,79.8]
[1755853466857,3.62114776,184.0,183.98,80.48]
[1755853467257,9.05594757,184.0,183.98,80.48]
[1755853467463,3.61987349,184.0,183.98,80.48]
[1755853468379,9.05468781,184.0,183.98,80.48]
[1755853468581,9.0543743,184.01,183.98,80.48]
[1755853469374,9.0543743,184.01,183.98,79.8]
[1755853469581,9.0543743,184.01,183.99,0.68]
[1755853470480,9.1143743,184.01,183.99,0.68]
[1755853471665,9.8243743,184.01,183.98,79.8]
[1755853471871,9.1143743,184.01,183.98,80.48]
[1755853473463,9.1143743,184.01,183.98,79.8]
[1755853473685,9.8243743,184.01,183.98,79.8]
[1755853474382,9.1143743,184.01,183.98,80.48]
[1755853474767,9.1143743,184.01,183.99,0.68]
[1755853476687,9.1143743,184.01,183.98,79.8]
[1755853476989,9.1143743,184.01,183.98,80.48]
[1755853477186,9.8243743,184.01,183.98,80.48]
[1755853477571,9.1143743,184.01,183.98,79.8]
[1755853477772,9.8243743,184.01,183.98,79.8]
[1755853478184,0.71,184.0,183.98,79.8]
[1755853478388,9.1143743,184.01,183.98,79.8]
[1755853478582,1.25188793,184.0,183.98,79.8]
[1755853479389,5.43507799,183.99,183.98,79.8]
[1755853481906,9.0533038,183.99,183.98,79.8]
[1755853483478,9.0533038,183.99,183.96,80.48]
[1755853484798,9.0533038,183.99,183.97,0.68]
[1755853485091,9.0533038,183.99,183.96,79.8]
[1755853485301,9.0533038,183.99,183.96,80.48]
[1755853485686,21.78073399,183.99,183.96,80.48]
[1755853486399,5.43566885,183.97,183.96,80.48]
[1755853486773,5.43566885,183.97,183.96,79.3]
[1755853487076,6.68755678,183.97,183.92,80.02]
[1755853487302,26.59967034,183.97,183.93,0.69]
[1755853487499,22.98321278,183.97,183.93,0.69]
[1755853487817,6.63755678,183.97,183.94,0.03]
[1755853488008,17.008328,183.96,183.94,0.03]
[1755853488388,5.43625985,183.95,183.94,0.03]
[1755853489314,14.27374113,183.95,183.94,0.03]
[1755853489520,29.96206913,183.95,183.94,0.03]
[1755853490280,26.60304247,183.95,183.94,0.03]
[1755853492401,30.62172124,183.95,183.94,0.03]
[1755853496508,30.61611286,183.95,183.94,0.03]
[1755853497112,30.61705636,183.95,183.94,0.03]
[1755853498282,73.07705636,183.95,183.94,0.03]
[1755853500989,30.61705636,183.95,183.94,0.03]
[1755853501182,73.07705636,183.95,183.94,0.03]
[1755853501494,26.0,183.93,183.92,0.03]
[1755853501695,78.05530559,183.93,183.92,0.03]
[1755853501886,78.71530559,183.93,183.92,0.03]
[1755853502082,80.89579559,183.93,183.92,0.03]
[1755853502801,84.90729846,183.93,183.92,0.03]
[1755853503302,80.89579559,183.93,183.92,0.03]
[1755853504213,80.89579559,183.93,183.9,0.03]
[1755853504410,7.62494924,183.92,183.9,0.03]
[1755853504711,43.10188793,183.91,183.9,0.03]
[1755853504896,46.71845462,183.91,183.9,0.03]
[1755853505093,47.37845462,183.91,183.9,0.03]
[1755853505296,30.15845462,183.91,183.9,0.03]
[1755853505603,72.71845462,183.91,183.9,0.03]
[1755853505988,78.17589684,183.91,183.9,0.72]
[1755853506188,31.97933015,183.91,183.9,0.03]
[1755853506393,31.97933015,183.91,183.9,0.72]
[1755853506992,31.43744222,183.91,183.9,0.72]
[1755853507386,32.63933015,183.91,183.9,0.03]
[1755853507597,31.97933015,183.91,183.9,0.03]
[1755853508707,74.59933015,183.91,183.9,0.03]
[1755853509887,31.97933015,183.91,183.9,0.72]
[1755853510083,26.0,183.91,183.9,0.72]
[1755853510908,31.43744222,183.91,183.9,0.72]
[1755853511404,47.79022622,183.91,183.9,0.72]
[1755853512086,48.33211415,183.91,183.9,0.03]
[1755853512402,48.99211415,183.91,183.9,0.03]
[1755853513015,91.57211415,183.91,183.9,0.03]
[1755853513519,48.99211415,183.91,183.9,0.03]
[1755853513693,91.01022622,183.91,183.9,0.03]
[1755853514512,48.45022622,183.91,183.9,0.03]
[1755853514701,91.01022622,183.91,183.9,0.03]
[1755853515104,26.0,183.88,183.85,0.69]
[1755853515298,0.54188793,183.87,183.85,0.69]
[1755853515889,0.54188793,183.87,183.82,79.8]
[1755853516105,16.357242,183.86,183.83,0.69]
[1755853517511,21.79619588,183.86,183.83,0.69]
[1755853518110,16.357242,183.86,183.83,0.69]
[1755853518905,16.357242,183.86,183.83,80.49]
[1755853519214,21.79623622,183.86,183.84,0.69]
[1755853519398,21.79623622,183.86,183.85,0.69]
[1755853519801,21.79623622,183.86,183.83,79.8]
[1755853519802,21.79623622,183.86,183.83,80.49]
[1755853519999,21.79623622,183.86,183.84,0.69]
[1755853521602,21.79623622,183.86,183.83,79.83]
[1755853521820,21.79623622,183.86,183.83,80.52]
[1755853522332,21.79623622,183.86,183.83,79.83]
[1755853522500,21.79623622,183.86,183.84,0.69]
[1755853523006,21.79623622,183.86,183.83,79.83]
[1755853523211,1.24188793,183.85,183.83,79.83]
[1755853523423,5.43951261,183.84,183.83,79.83]
[1755853523613,5.43951261,183.84,183.83,0.03]
[1755853524000,59.38091393,183.85,183.83,0.72]
[1755853524001,64.82023247,183.85,183.83,0.72]
[1755853524613,59.38091393,183.85,183.84,0.69]
[1755853525728,69.02188793,183.87,183.84,0.69]
[1755853525925,0.54188793,183.89,183.84,0.69]
[1755853526222,68.48,183.89,183.84,80.49]
[1755853526407,69.02188793,183.89,183.85,0.69]
[1755853526597,2.180609,183.88,183.85,0.69]
[1755853527215,26.0,183.87,183.86,0.69]
[1755853529811,16.354567,183.89,183.86,80.49]
[1755853530137,0.06,183.9,183.87,0.69]
[1755853530305,6.19781131,183.9,183.85,80.49]
[1755853530506,6.03969924,183.9,183.86,0.69]
[1755853530706,6.03969924,183.9,183.87,0.69]
[1755853531119,48.51969924,183.9,183.87,0.69]
[1755853531325,48.51969924,183.9,183.88,0.69]
[1755853531717,47.97781131,183.9,183.89,0.69]
[1755853532126,0.06,183.9,183.89,0.69]
[1755853532432,26.06,183.9,183.89,0.69]
[1755853533008,0.06,183.9,183.89,0.69]
[1755853534937,0.06,183.9,183.86,0.69]
[1755853535235,0.06,183.9,183.87,0.69]
[1755853535842,0.06,183.9,183.88,0.69]
[1755853536530,0.06,183.9,183.88,79.8]
[1755853536745,0.06,183.9,183.88,80.49]
[1755853537434,0.06,183.9,183.88,79.8]
[1755853537824,12.937708,183.9,183.88,80.49]
[1755853538317,0.06,183.9,183.88,79.8]
[1755853538517,5.4380336,183.89,183.88,79.8]
[1755853539726,12.997708,183.9,183.88,79.8]
[1755853539920,0.06,183.9,183.89,0.69]
[1755853540537,0.06,183.9,183.89,20.00795075]
[1755853542434,0.06,183.9,183.89,0.97432314]
[1755853542939,0.06,183.9,183.87,2.870014]
[1755853543141,0.06,183.9,183.87,0.83216157]
[1755853543324,5.496851,183.9,183.87,0.83216157]
[1755853543525,6.196851,183.9,183.86,42.46]
[1755853543720,6.196851,183.9,183.86,43.15]
[1755853544229,6.196851,183.9,183.85,0.14216157]
[1755853544545,6.196851,183.9,183.86,0.69]
[1755853544840,10.93484583,183.9,183.85,0.28432314]
[1755853545018,10.93484583,183.9,183.87,0.69]
[1755853545535,5.496851,183.9,183.87,0.28432314]
[1755853545738,0.06,183.9,183.88,0.97432314]
[1755853545944,0.06,183.9,183.89,0.69]
[1755853546240,0.06,183.9,183.89,14.28559401]
[1755853546927,0.06,183.9,183.89,0.97432314]
[1755853547136,0.06,183.9,183.89,0.28432314]
[1755853547517,0.06,183.9,183.87,122.92]
[1755853547723,0.06,183.9,183.88,0.28432314]
[1755853547933,0.06,183.9,183.87,122.26]
[1755853548138,0.06,183.9,183.87,79.8]
[1755853548929,0.06,183.9,183.88,0.66]
[1755853549258,0.06,183.9,183.88,0.94432314]
[1755853549458,0.06,183.9,183.89,0.66]
[1755853550859,0.06,183.9,183.88,0.28432314]
[1755853551146,0.06,183.9,183.89,0.66]
[1755853551935,0.06,183.9,183.88,13.87991715]
[1755853552338,0.06,183.9,183.89,0.66]
[1755853555234,0.06,183.9,183.89,6.38235674]
[1755853555434,0.06,183.9,183.89,48.84235674]
[1755853557245,0.06,183.9,183.89,128.64235674]
[1755853558357,0.06,183.9,183.89,123.20432314]
[1755853558768,0.06,183.9,183.89,122.54432314]
[1755853559540,0.06,183.9,183.89,123.20432314]
[1755853559756,0.06,183.9,183.89,128.64235674]
[1755853560264,0.06,183.9,183.89,142.23795075]
[1755853561244,0.06,183.9,183.89,136.79991715]
[1755853561557,0.06,183.9,183.89,144.41760875]
[1755853564373,0.06,183.9,183.89,160.74760875]
[1755853565245,0.06,183.9,183.89,144.41760875]
[1755853567966,0.06,183.9,183.89,64.61760875]
[1755853568273,0.06,183.9,183.89,67.45411818]
[1755853568458,0.06,183.9,183.89,67.99792154]
[1755853569774,1e-08,183.9,183.89,164.12792154]
[1755853570070,1e-08,183.9,183.89,163.58411818]
[1755853571752,1e-08,183.9,183.89,147.28411818]
[1755853574956,1e-08,183.9,183.89,146.60411818]
[1755853575252,0.06,183.94,183.93,92.665594]
[1755853575458,0.06,183.94,183.93,56.31991715]
[1755853575750,0.06,183.94,183.93,56.17775558]
[1755853576076,0.06,183.94,183.93,42.44]
[1755853576580,0.06,183.94,183.9,0.28432314]
[1755853576884,0.06,183.94,183.92,0.14216157]
[1755853577096,0.62,183.93,183.89,79.09999999]
[1755853577259,1.16188793,183.93,183.89,0.03]
[1755853577656,16.972784,183.92,183.89,0.03]
[1755853577851,26.0,183.9,183.89,0.03]
[1755853578173,31.4377379,183.9,183.89,0.03]
[1755853578480,32.0577379,183.9,183.89,0.03]
[1755853579952,35.65706966,183.9,183.89,0.03]
[1755853581258,30.21933176,183.9,183.89,0.03]
[1755853581574,35.65706966,183.9,183.89,0.03]
[1755853582657,36.19895759,183.9,183.89,0.03]
[1755853583084,35.65706966,183.9,183.89,0.03]
[1755853584060,36.19895759,183.9,183.89,0.03]
[1755853587183,35.65706966,183.9,183.89,0.03]
[1755853588282,34.2384659,183.9,183.89,0.03]
[1755853589973,34.78035383,183.9,183.89,0.03]